Workbook

Sheet Sheet1
A1: 2025 READ SCHEDULE
C2: DECEMBER | D2: JANUARY | F2: FEBRUARY | H2: MARCH | J2: APRIL | L2: MAY | N2: JUNE | P2: JULY | R2: AUGUST | T2: SEPTEMBER | V2: OCTOBER | X2: NOVEMBER | Z2: DECEMBER | AB2: JANUARY
C3: 2024 | D3: 2025 | F3: 2025 | H3: 2025 | J3: 2025 | L3: 2025 | N3: 2025 | P3: 2025 | R3: 2025 | T3: 2025 | V3: 2025 | X3: 2025 | Z3: 2025 | AB3: 2026
B4: CYCLE | C4: READ DATE | D4: READ DATE | E4: ELAPSED DAYS | F4: READ DATE | G4: ELAPSED DAYS | H4: READ DATE | I4: ELAPSED DAYS | J4: READ DATE | K4: ELAPSED DAYS | L4: READ DATE | M4: ELAPSED DAYS | N4: READ DATE | O4: ELAPSED DAYS | P4: READ DATE | Q4: ELAPSED DAYS | R4: READ DATE | S4: ELAPSED DAYS | T4: READ DATE | U4: ELAPSED DAYS | V4: READ DATE | W4: ELAPSED DAYS | X4: READ DATE | Y4: ELAPSED DAYS | Z4: READ DATE | AA4: ELAPSED DAYS | AB4: READ DATE | AC4: ELAPSED DAYS | AE4: February | AF4: Feb Leap Year | AG4: Days Prior Month | AH4: Days Prior Month
B5: 1 | C5: 3 | D5: 2 | E5: =$AH$5-C5+D5 -> 30 | F5: 31 | G5: =-D5+F5 -> 29 | H5: 3 | I5: =$AE$5+H5 -> 31 | J5: 1 | K5: =$AH$5-H5+J5 -> 29 | L5: 1 | M5: =$AG$5-J5+L5 -> 30 | N5: 2 | O5: =$AH$5-L5+N5 -> 32 | P5: 1 | Q5: =$AG$5-N5+P5 -> 29 | R5: 1 | S5: =$AH$5-P5+R5 -> 31 | T5: 2 | U5: =$AH$5-R5+T5 -> 32 | V5: 1 | W5: =$AG$5-T5+V5 -> 29 | X5: 30 | Y5: =AG5-V5 -> 29 | Z5: 2 | AA5: =AH5-X5+AG5+Z5 -> 33 | AB5: 2 | AC5: =$AH$5-Z5+AB5 -> 31 | AE5: 28 | AF5: 29 | AG5: 30 | AH5: 31
B6: 2 | C6: 4 | D6: 3 | E6: 30 | F6: 3 | G6: =$AH$5-D6+F6 -> 31 | H6: 4 | I6: =$AE$5-F6+H6 -> 29 | J6: 2 | K6: =$AH$5-H6+J6 -> 29 | L6: 2 | M6: =$AG$5-J6+L6 -> 30 | N6: 3 | O6: =$AH$5-L6+N6 -> 32 | P6: 2 | Q6: =$AG$5-N6+P6 -> 29 | R6: 4 | S6: =$AH$5-P6+R6 -> 33 | T6: 3 | U6: =$AH$5-R6+T6 -> 30 | V6: 2 | W6: =$AG$5-T6+V6 -> 29 | X6: 31 | Y6: =AH5-V6 -> 29 | Z6: 3 | AA6: =AH5-X6+AG5+Z6 -> 33 | AB6: 5 | AC6: =$AH$5-Z6+AB6 -> 33
B7: 3 | C7: 5 | D7: 6 | E7: 32 | F7: 4 | G7: =$AH$5-D7+F7 -> 29 | H7: 5 | I7: =$AE$5-F7+H7 -> 29 | J7: 3 | K7: 29 | L7: 5 | M7: 32 | N7: 4 | O7: 30 | P7: 3 | Q7: 29 | R7: 5 | S7: 33 | T7: 4 | U7: 30 | V7: 3 | W7: 29 | X7: 3 | Y7: =$AH$5-V7+X7 -> 31 | Z7: 4 | AA7: =$AG$5-X7+Z7 -> 31 | AB7: 6 | AC7: 33
B8: 4 | C8: 6 | D8: 7 | E8: 32 | F8: 5 | G8: 29 | H8: 6 | I8: 29 | J8: 4 | K8: 29 | L8: 6 | M8: 32 | N8: 5 | O8: 30 | P8: 7 | Q8: 32 | R8: 6 | S8: 30 | T8: 5 | U8: 30 | V8: 6 | W8: 31 | X8: 4 | Y8: =$AH$5-V8+X8 -> 29 | Z8: 5 | AA8: 31 | AB8: 7 | AC8: 33
B9: 5 | C9: 9 | D9: 8 | E9: 30 | F9: 6 | G9: 29 | H9: 7 | I9: 29 | J9: 7 | K9: 31 | L9: 7 | M9: 30 | N9: 6 | O9: 30 | P9: 8 | Q9: 32 | R9: 7 | S9: 30 | T9: 8 | U9: 32 | V9: 7 | W9: 29 | X9: 5 | Y9: 29 | Z9: 8 | AA9: 33 | AB9: 8 | AC9: 31
B10: 6 | C10: 10 | D10: 9 | E10: 30 | F10: 7 | G10: 29 | H10: 10 | I10: 31 | J10: 8 | K10: 29 | L10: 8 | M10: 30 | N10: 9 | O10: 32 | P10: 9 | Q10: 30 | R10: 8 | S10: 30 | T10: 9 | U10: 32 | V10: 8 | W10: 29 | X10: 6 | Y10: 29 | Z10: 9 | AA10: 33 | AB10: 9 | AC10: 31
B11: 7 | C11: 11 | D11: 10 | E11: 30 | F11: 10 | G11: 31 | H11: 11 | I11: 29 | J11: 9 | K11: 29 | L11: 9 | M11: 30 | N11: 10 | O11: 32 | P11: 10 | Q11: 30 | R11: 11 | S11: 32 | T11: 10 | U11: 30 | V11: 9 | W11: 29 | X11: 7 | Y11: 29 | Z11: 10 | AA11: 33 | AB11: 12 | AC11: 33
B12: 8 | C12: 12 | D12: 13 | E12: 32 | F12: 11 | G12: 29 | H12: 12 | I12: 29 | J12: 10 | K12: 29 | L12: 12 | M12: 32 | N12: 11 | O12: 30 | P12: 11 | Q12: 30 | R12: 12 | S12: 32 | T12: 11 | U12: 30 | V12: 10 | W12: 29 | X12: 10 | Y12: 31 | Z12: 11 | AA12: 31 | AB12: 13 | AC12: 33
B13: 9 | C13: 13 | D13: 14 | E13: 32 | F13: 12 | G13: 29 | H13: 13 | I13: 29 | J13: 11 | K13: 29 | L13: 13 | M13: 32 | N13: 12 | O13: 30 | P13: 14 | Q13: 32 | R13: 13 | S13: 30 | T13: 12 | U13: 30 | V13: 14 | W13: 32 | X13: 12 | Y13: 29 | Z13: 12 | AA13: 30 | AB13: 14 | AC13: 33
B14: 10 | C14: 16 | D14: 15 | E14: 30 | F14: 13 | G14: 29 | H14: 14 | I14: 29 | J14: 14 | K14: 31 | L14: 14 | M14: 30 | N14: 13 | O14: 30 | P14: 15 | Q14: 32 | R14: 14 | S14: 30 | T14: 15 | U14: 32 | V14: 15 | W14: 30 | X14: 13 | Y14: 29 | Z14: 15 | AA14: 32 | AB14: 15 | AC14: 31
B15: 11 | C15: 17 | D15: 16 | E15: 30 | F15: 14 | G15: 29 | H15: 17 | I15: 31 | J15: 15 | K15: 29 | L15: 15 | M15: 30 | N15: 16 | O15: 32 | P15: 16 | Q15: 30 | R15: 15 | S15: 30 | T15: 16 | U15: 32 | V15: 16 | W15: 30 | X15: 14 | Y15: 29 | Z15: 16 | AA15: 32 | AB15: 16 | AC15: 31
B16: 12 | C16: 18 | D16: 17 | E16: 30 | F16: 18 | G16: 32 | H16: 18 | I16: 28 | J16: 16 | K16: 29 | L16: 16 | M16: 30 | N16: 17 | O16: 32 | P16: 17 | Q16: 30 | R16: 18 | S16: 32 | T16: 17 | U16: 30 | V16: 17 | W16: 30 | X16: 17 | Y16: 31 | Z16: 17 | AA16: 30 | AB16: 19 | AC16: 33
B17: 13 | C17: 19 | D17: 20 | E17: 32 | F17: 19 | G17: 30 | H17: 19 | I17: 28 | J17: 17 | K17: 29 | L17: 19 | M17: 32 | N17: 18 | O17: 30 | P17: 18 | Q17: 30 | R17: 19 | S17: 32 | T17: 18 | U17: 30 | V17: 20 | W17: 32 | X17: 18 | Y17: 29 | Z17: 18 | AA17: 30 | AB17: 20 | AC17: 33
B18: 14 | C18: 20 | D18: 21 | E18: 32 | F18: 20 | G18: 30 | H18: 20 | I18: 28 | J18: 18 | K18: 29 | L18: 20 | M18: 32 | N18: 19 | O18: 30 | P18: 21 | Q18: 32 | R18: 20 | S18: 30 | T18: 19 | U18: 30 | V18: 21 | W18: 32 | X18: 19 | Y18: 29 | Z18: 19 | AA18: 30 | AB18: 21 | AC18: 33
B19: 15 | C19: 23 | D19: 22 | E19: 30 | F19: 21 | G19: 30 | H19: 21 | I19: 28 | J19: 22 | K19: 32 | L19: 21 | M19: 29 | N19: 20 | O19: 30 | P19: 22 | Q19: 32 | R19: 21 | S19: 30 | T19: 22 | U19: 32 | V19: 22 | W19: 30 | X19: 20 | Y19: 29 | Z19: 22 | AA19: 32 | AB19: 22 | AC19: 31
B20: 16 | C20: 24 | D20: 23 | E20: 30 | F20: 24 | G20: 32 | H20: 24 | I20: 28 | J20: 23 | K20: 30 | L20: 22 | M20: 29 | N20: 23 | O20: 32 | P20: 23 | Q20: 30 | R20: 22 | S20: 30 | T20: 23 | U20: 32 | V20: 23 | W20: 30 | X20: 21 | Y20: 29 | Z20: 23 | AA20: 32 | AB20: 23 | AC20: 31
B21: 17 | C21: 26 | D21: 24 | E21: 29 | F21: 25 | G21: 32 | H21: 25 | I21: 28 | J21: 24 | K21: 30 | L21: 23 | M21: 29 | N21: 24 | O21: 32 | P21: 24 | Q21: 30 | R21: 25 | S21: 32 | T21: 24 | U21: 30 | V21: 24 | W21: 30 | X21: 24 | Y21: 31 | Z21: 24 | AA21: 30 | AB21: 26 | AC21: 33
B22: 18 | C22: 27 | D22: 27 | E22: 31 | F22: 26 | G22: 30 | H22: 26 | I22: 28 | J22: 25 | K22: 30 | L22: 27 | M22: 32 | N22: 25 | O22: 29 | P22: 25 | Q22: 30 | R22: 26 | S22: 32 | T22: 25 | U22: 30 | V22: 27 | W22: 32 | X22: 25 | Y22: 29 | Z22: 26 | AA22: 31 | AB22: 27 | AC22: 32
B23: 19 | C23: 30 | D23: 28 | E23: 29 | F23: 27 | G23: 30 | H23: 27 | I23: 28 | J23: 28 | K23: 32 | L23: 28 | M23: 30 | N23: 26 | O23: 29 | P23: 28 | Q23: 32 | R23: 27 | S23: 30 | T23: 26 | U23: 30 | V23: 28 | W23: 32 | X23: 26 | Y23: 29 | Z23: 29 | AA23: 33 | AB23: 28 | AC23: 30
B24: 20 | C24: 31 | D24: 29 | E24: 29 | F24: 28 | G24: 30 | H24: 28 | I24: 28 | J24: 29 | K24: 32 | L24: 29 | M24: 30 | N24: 27 | O24: 29 | P24: 29 | Q24: 32 | R24: 28 | S24: 30 | T24: 29 | U24: 32 | V24: 29 | W24: 30 | X24: 1 | Y24: =AH5-V24+AG5+1 -> 33 | Z24: 30 | AA24: =Z24-X24 -> 29 | AB24: 29 | AC24: 30
B25: AVG
B26: ELAPSED DAYS | E26: =SUM(E5:E24)/20 -> 30.5 | G26: =SUM(G5:G24)/20 -> 29.95 | I26: =SUM(I5:I24)/20 -> 28.85 | K26: =SUM(K5:K24)/20 -> 29.8 | M26: =SUM(M5:M24)/20 -> 30.55 | O26: =SUM(O5:O24)/20 -> 30.65 | Q26: =SUM(Q5:Q24)/20 -> 30.65 | S26: =SUM(S5:S24)/20 -> 30.95 | U26: =SUM(U5:U24)/20 -> 30.8 | W26: =SUM(W5:W24)/20 -> 30.2 | Y26: =SUM(Y5:Y24)/20 -> 29.6 | AA26: =SUM(AA5:AA24)/20 -> 31.45 | AC26: =SUM(AC5:AC24)/20 -> 31.95
